bitfinex/quotes_SOLUSD_20260109
["timestamp","ask_amount","ask_price","bid_price","bid_amount"]
[1767971214793,68.30265011,136.38,136.28,8.03336471]
[1767971214794,6.6801107,136.35,136.28,8.03336471]
[1767971214990,16.74968442,136.34,136.29,0.69594096]
[1767971215193,6.6801107,136.35,136.29,0.69594096]
[1767971215398,6.6801107,136.35,136.27,0.69594096]
[1767971215399,4.76253638,136.34,136.27,0.69594096]
[1767971215583,7.33537283,136.33,136.27,20.01351848]
[1767971215902,0.28432314,136.34,136.26,0.69594096]
[1767971215903,25.95560196,136.34,136.26,0.69594096]
[1767971216204,7.33476716,136.34,136.28,0.69594096]
[1767971216406,19.31402379,136.34,136.29,11.97925663]
[1767971216580,11.97925663,136.34,136.29,0.69594096]
[1767971216781,11.97925663,136.33,136.29,0.69594096]
[1767971216990,13.38,136.32,136.22,0.69594096]
[1767971217191,11.97925663,136.28,136.24,0.69594096]
[1767971217402,6.6801107,136.31,136.24,12.67519759]
[1767971217601,6.6801107,136.31,136.24,20.01496968]
[1767971217602,12.26357977,136.3,136.24,20.01496968]
[1767971217900,7.621203,136.3,136.22,7.34067449]
[1767971218101,11.97925663,136.28,136.23,19.31962985]
[1767971218293,11.97925663,136.28,136.22,19.31986679]
[1767971218500,11.97925663,136.28,136.23,7.34046977]
[1767971219004,6.6801107,136.32,136.25,11.97925663]
[1767971219514,11.97925663,136.3,136.25,11.97925663]
[1767971219801,11.97925663,136.3,136.25,19.31839212]
[1767971220001,11.97925663,136.3,136.26,0.69594096]
[1767971220211,14.01619893,136.32,136.26,0.69594096]
[1767971220413,7.47771931,136.33,136.27,0.69594096]
[1767971220707,0.92883557,136.33,136.26,0.69594096]
[1767971220883,0.14991424,136.32,136.26,0.69594096]
[1767971221084,11.97925663,136.27,136.26,0.69594096]
[1767971221283,11.97925663,136.28,136.26,0.69594096]
[1767971221584,6.6801107,136.31,136.23,0.69594096]
[1767971221585,7.33729547,136.29,136.23,0.69594096]
[1767971221886,0.92388959,136.3,136.2,13.38]
[1767971221887,11.97925663,136.26,136.24,0.69594096]
[1767971222494,11.97925663,136.25,136.21,8.03736612]
[1767971222698,11.97925663,136.25,136.22,0.69594096]
[1767971222894,37.9422616,136.3,136.22,0.69594096]
[1767971222895,7.62111209,136.3,136.22,0.69594096]
[1767971223112,11.97925663,136.28,136.24,0.69969972]
[1767971223304,11.97925663,136.27,136.24,0.69969972]
[1767971223508,11.97925663,136.25,136.2,7.3417659]
[1767971223816,7.33746512,136.29,136.22,0.69969972]
[1767971224116,11.97925663,136.25,136.2,20.02072225]
[1767971224510,11.97925663,136.25,136.2,8.04146562]
[1767971224511,7.39856811,136.25,136.2,8.04146562]
[1767971224712,7.39856811,136.24,136.21,0.69969972]
[1767971225009,7.39856811,136.24,136.18,0.69969972]
[1767971225198,7.39856811,136.23,136.19,0.69969972]
[1767971225604,7.39856811,136.22,136.19,0.69969972]
[1767971225798,7.3389109,136.26,136.2,0.69969972]
[1767971225997,0.099,136.26,136.2,0.69969972]
[1767971226201,7.39856811,136.25,136.2,0.69969972]
[1767971226608,13.4,136.29,136.22,0.69969972]
[1767971226799,110.85327296,136.35,136.19,25.69930791]
[1767971226800,0.099,136.32,136.24,0.69969972]
[1767971227117,7.39856811,136.26,136.22,0.69969972]
[1767971227322,0.68997155,136.29,136.22,0.69969972]
[1767971227698,7.39856811,136.26,136.23,8.04022676]
[1767971228025,18.62512667,136.31,136.24,0.69969972]
[1767971228026,7.39856811,136.28,136.24,0.69969972]
[1767971228316,7.39856811,136.28,136.25,0.69969972]
[1767971228711,7.39856811,136.29,136.25,0.69969972]
[1767971228917,8.03218974,136.31,136.25,0.69969972]
[1767971229222,7.39856811,136.27,136.23,0.69969972]
[1767971229415,0.68997155,136.29,136.23,0.69969972]
[1767971229598,0.83213312,136.29,136.23,0.69969972]
[1767971229798,7.39856811,136.24,136.21,0.69969972]
[1767971230299,25.78732825,136.28,136.21,0.69969972]
[1767971230828,7.39856811,136.24,136.21,0.69969972]
[1767971231016,25.78732825,136.28,136.21,0.69969972]
[1767971231223,0.96844407,136.27,136.21,0.69969972]
[1767971231424,7.39856811,136.22,136.21,0.69969972]
[1767971231606,7.39856811,136.23,136.19,0.69969972]
[1767971231806,0.96844407,136.27,136.2,0.69969972]
[1767971231807,7.33944954,136.25,136.2,0.69969972]
[1767971232002,7.39856811,136.24,136.2,0.69969972]
[1767971232214,0.69594096,136.28,136.21,0.69969972]
[1767971232423,7.39856811,136.25,136.21,0.69969972]
[1767971232925,8.0339593,136.28,136.21,0.69969972]
[1767971233236,7.39856811,136.26,136.21,0.69969972]
[1767971233525,7.39856811,136.25,136.21,0.69969972]
[1767971233726,8.0339593,136.28,136.21,0.69969972]
[1767971234035,7.39856811,136.25,136.22,0.69969972]
[1767971234532,8.0339593,136.28,136.22,0.69969972]
[1767971234732,7.39856811,136.26,136.22,0.69969972]
[1767971234931,7.33801834,136.28,136.22,0.69969972]
[1767971235127,7.39856811,136.25,136.22,0.69969972]
[1767971235704,7.33801834,136.28,136.22,0.69969972]
[1767971235913,31.84152309,136.3,136.24,0.69969972]
[1767971235914,7.39856811,136.27,136.24,0.69969972]
[1767971236804,7.39856811,136.26,136.24,0.69969972]
[1767971237005,7.43576279,136.3,136.24,0.69969972]
[1767971237201,7.33634722,136.31,136.25,0.69969972]
[1767971237405,7.39856811,136.28,136.25,0.69969972]
[1767971237632,7.39856811,136.27,136.25,0.69969972]
[1767971237827,25.7758945,136.31,136.25,0.69969972]
[1767971237828,7.43534722,136.31,136.25,0.69969972]
[1767971238019,7.39856811,136.27,136.25,0.69969972]
[1767971238213,7.39856811,136.27,136.25,8.03905435]
[1767971238421,7.39856811,136.28,136.25,0.69969972]
[1767971238618,7.39856811,136.27,136.25,0.69969972]
[1767971239008,0.099,136.31,136.25,0.69969972]
[1767971239210,7.39856811,136.27,136.25,0.69969972]
[1767971239927,7.39856811,136.27,136.25,8.03913886]
[1767971240124,7.39856811,136.27,136.25,0.69969972]
[1767971240309,7.33686548,136.3,136.25,0.69969972]
[1767971240310,6.67356811,136.28,136.26,0.69969972]
[1767971241150,7.33686548,136.3,136.25,0.69969972]
[1767971241442,7.39856811,136.28,136.25,0.69969972]
[1767971241850,7.33686548,136.3,136.25,0.69969972]
[1767971242130,19.04650398,136.31,136.25,0.69969972]
[1767971242131,7.39856811,136.28,136.25,0.69969972]
[1767971242330,7.33800598,136.28,136.23,0.69969972]
[1767971242535,7.39856811,136.24,136.21,0.69969972]
[1767971242836,7.39856811,136.22,136.19,0.69969972]
[1767971243028,7.39856811,136.21,136.19,0.69969972]
[1767971243228,7.39856811,136.22,136.19,0.69969972]
[1767971243638,0.70533193,136.26,136.2,7.34204369]
[1767971243814,8.04333791,136.28,136.22,0.69969972]
[1767971244014,7.39856811,136.26,136.22,0.69969972]
[1767971244211,7.39856811,136.24,136.23,0.69969972]
[1767971244415,6.67356811,136.24,136.23,0.69969972]
[1767971244622,7.39856811,136.25,136.22,7.34106176]
[1767971245638,8.04334481,136.28,136.22,7.34106176]
[1767971245939,7.39856811,136.26,136.22,7.34106176]
[1767971246144,7.39856811,136.26,136.21,7.34160487]
[1767971246437,0.70533193,136.27,136.21,7.37066391]
[1767971246634,7.39856811,136.25,136.21,7.37066391]
[1767971246941,25.68259755,136.28,136.17,37.00078805]
[1767971246942,8.10390004,136.23,136.18,7.34285524]
[1767971247117,0.70533193,136.23,136.18,7.34285524]
[1767971247312,7.39856811,136.22,136.17,20.77266061]
[1767971247518,7.39856811,136.21,136.17,20.77266061]
[1767971247755,0.70533193,136.23,136.17,20.77266061]
[1767971248041,7.39856811,136.21,136.18,7.34315556]
[1767971248220,7.39856811,136.22,136.18,7.34315556]
[1767971248417,8.10390004,136.23,136.18,33.8341014]
[1767971248637,0.70533193,136.25,136.2,7.39856811]
[1767971248860,0.70533193,136.25,136.2,7.42762715]
[1767971249016,13.68432314,136.3,136.2,7.42762715]
[1767971249017,8.04401795,136.27,136.2,7.42762715]
[1767971249211,7.39856811,136.25,136.2,0.02905904]
[1767971249642,0.70533193,136.29,136.21,0.02905904]
[1767971249942,8.10390004,136.27,136.21,20.79856811]
[1767971250142,0.70533193,136.29,136.24,25.68995889]
[1767971250530,13.4,136.33,136.24,33.11758604]
[1767971250531,8.10390004,136.3,136.24,33.11758604]
[1767971250838,7.39856811,136.29,136.24,33.11758604]
[1767971251247,0.70533193,136.3,136.25,20.79856811]
[1767971251248,8.10390004,136.3,136.25,20.79856811]
[1767971251441,8.10390004,136.3,136.25,13.4]
[1767971251615,0.70533193,136.3,136.25,13.4]
[1767971251817,0.70533193,136.3,136.26,7.39856811]
[1767971252145,7.39856811,136.31,136.25,13.42905904]
[1767971252347,8.10390004,136.31,136.26,33.08475627]
[1767971252544,8.10390004,136.33,136.28,7.39856811]
[1767971252745,7.99604827,136.37,136.3,0.02905904]
[1767971253046,7.39856811,136.36,136.3,7.42762715]
[1767971253220,7.39856811,136.36,136.31,0.02905904]
[1767971253422,7.39856811,136.36,136.31,7.42762715]
[1767971254349,1e-08,136.39,136.37,14.73155923]
[1767971254661,1e-08,136.39,136.37,28.13155923]
[1767971255153,0.2,136.45,136.38,7.39856811]
[1767971255360,1e-08,136.45,136.44,7.39856811]
[1767971255656,0.66289624,136.52,136.44,7.39856811]
[1767971255842,0.66289624,136.52,136.42,13.68432314]
[1767971255843,0.66289624,136.51,136.42,13.68432314]
[1767971256141,5.46943503,136.51,136.45,7.39856811]
[1767971256344,0.66289624,136.51,136.45,14.72680369]
[1767971256523,0.66289624,136.5,136.45,7.32823558]
[1767971256721,5.45914239,136.5,136.46,7.39856811]
[1767971256927,0.66289624,136.47,136.42,7.39856811]
[1767971257230,0.66289624,136.47,136.42,14.72870793]
[1767971257231,8.06146435,136.47,136.42,14.72870793]
[1767971257429,0.66289624,136.47,136.42,14.72870793]
[1767971257731,0.66289624,136.49,136.46,7.39856811]
[1767971257928,0.66289624,136.49,136.45,7.39856811]
[1767971258153,0.66289624,136.49,136.46,7.39856811]
[1767971258546,7.32555053,136.51,136.45,7.3282997]
[1767971258851,0.66289624,136.5,136.44,7.3290768]
[1767971259157,0.66289624,136.49,136.45,7.39856811]
[1767971259323,0.66289624,136.49,136.46,7.39856811]
[1767971259524,0.66289624,136.49,136.45,7.32847972]
[1767971259750,0.66289624,136.49,136.47,7.39856811]
[1767971259949,20.72478559,136.53,136.46,7.32796665]
[1767971259950,0.66289624,136.51,136.46,7.32796665]
[1767971260258,0.66289624,136.52,136.49,7.39856811]
[1767971260467,0.66289624,136.51,136.47,7.39856811]
[1767971260825,0.66289624,136.5,136.44,7.32901656]
[1767971261040,0.66289624,136.48,136.44,7.39856811]
[1767971261340,0.66289624,136.48,136.42,7.3302172]
[1767971261341,0.66289624,136.47,136.42,7.3302172]
[1767971261658,0.66289624,136.46,136.42,7.39856811]
[1767971262031,0.66289624,136.45,136.41,7.39856811]
[1767971262331,0.66289624,136.45,136.4,7.33127396]
[1767971262534,0.66289624,136.49,136.44,7.39856811]
[1767971262734,111.82554706,136.51,136.48,7.39856811]
[1767971262735,0.66289624,136.51,136.48,7.39856811]
[1767971262937,0.66289624,136.51,136.44,13.38]
[1767971263136,0.66289624,136.51,136.47,7.39856811]
[1767971263337,0.66289624,136.49,136.45,7.39856811]
[1767971263527,0.66289624,136.48,136.42,13.38]
[1767971263734,0.66289624,136.48,136.44,7.39856811]
[1767971264142,0.66289624,136.47,136.43,7.39856811]
[1767971264341,0.66289624,136.49,136.45,7.39856811]
[1767971264740,0.66289624,136.47,136.43,7.39856811]
[1767971264938,0.66289624,136.46,136.42,7.39856811]
[1767971265439,0.66289624,136.45,136.41,7.39856811]
[1767971265751,0.66289624,136.45,136.42,7.39856811]
[1767971266530,0.66289624,136.45,136.4,13.38]
[1767971266730,0.66289624,136.45,136.4,7.33120753]
[1767971266945,0.66289624,136.45,136.41,7.39856811]
[1767971267341,0.66289624,136.45,136.4,7.33120753]
[1767971267537,0.66289624,136.45,136.42,7.39856811]
[1767971268145,0.66289624,136.45,136.41,7.3308]
[1767971268349,7.32624429,136.5,136.42,25.65597636]
[1767971268547,14.7240635,136.51,136.46,7.39856811]
[1767971269055,14.7240635,136.51,136.45,7.32869182]
[1767971269238,13.38,136.52,136.48,7.39856811]
[1767971269438,20.77856811,136.52,136.47,7.39856811]
[1767971270358,0.70667744,136.51,136.48,7.39856811]
[1767971270538,0.70667744,136.51,136.45,7.32832828]
[1767971270740,20.70497162,136.52,136.45,7.32832828]
[1767971270741,7.57719016,136.5,136.45,7.32832828]
[1767971270943,20.88359367,136.52,136.46,8.10769269]
[1767971271144,20.88359367,136.52,136.46,15.43544829]
[1767971271461,28.28216178,136.52,136.47,7.39856811]
[1767971271645,20.88359367,136.52,136.46,8.03688018]
[1767971271963,0.1838498,136.5,136.46,7.39856811]
[1767971272158,7.39856811,136.51,136.46,7.39856811]
[1767971272350,14.72419606,136.51,136.46,7.39856811]
[1767971272753,14.72419606,136.51,136.46,14.72665794]
[1767971272957,14.72419606,136.51,136.46,7.32808983]
[1767971273143,7.50425,136.51,136.45,8.03763816]
[1767971273460,7.39856811,136.49,136.45,0.70912458]
[1767971273662,21.41171637,136.52,136.47,7.39856811]
[1767971274044,28.81028448,136.52,136.47,7.39856811]
[1767971274567,28.81028448,136.52,136.48,7.39856811]
[1767971274777,0.70667744,136.54,136.5,7.39856811]
[1767971275067,0.70667744,136.56,136.52,7.39856811]
[1767971275364,0.70667744,136.56,136.53,7.39856811]
[1767971275551,0.70667744,136.58,136.53,7.39856811]
[1767971275865,0.70667744,136.6,136.53,0.70912458]
[1767971276163,0.70667744,136.6,136.56,7.39856811]
[1767971276663,15.42617841,136.6,136.56,7.39856811]
[1767971276885,8.0276103,136.6,136.56,7.39856811]
[1767971277083,15.42617841,136.6,136.55,7.39856811]
[1767971277256,8.0276103,136.6,136.55,7.39856811]
[1767971277462,0.17862205,136.59,136.55,7.39856811]
[1767971278176,0.17862205,136.59,136.56,7.39856811]
[1767971278496,0.17862205,136.59,136.53,8.03344721]
[1767971278667,7.57719016,136.59,136.53,8.03344721]
[1767971278869,0.17862205,136.63,136.57,0.70912458]
[1767971279076,7.57719016,136.63,136.58,7.39856811]
[1767971279251,31.87405216,136.66,136.59,7.39856811]
[1767971279252,0.70667744,136.62,136.59,7.39856811]
[1767971279444,0.70667744,136.62,136.58,7.39856811]
[1767971279645,0.70667744,136.62,136.57,8.0476927]
[1767971279946,8.10524555,136.62,136.57,8.0476927]
[1767971280147,8.10524555,136.62,136.57,0.64912459]
[1767971280494,7.39856811,136.6,136.55,20.77856811]
[1767971280773,7.39856811,136.6,136.55,14.72167871]
[1767971280977,7.39856811,136.59,136.55,7.3231106]
[1767971281281,0.70199089,136.6,136.54,0.70912458]
[1767971281784,8.10524555,136.57,136.53,20.70425513]
[1767971282082,7.39856811,136.6,136.55,15.43090463]
[1767971282281,7.39856811,136.58,136.54,7.32367911]
[1767971282691,7.39856811,136.59,136.55,7.32330143]
[1767971282874,0.68904008,136.59,136.54,7.32370932]
[1767971283198,7.39856811,136.58,136.53,8.10769269]
[1767971283506,7.39856811,136.58,136.52,0.69333436]
[1767971283507,7.39856811,136.57,136.52,0.69333436]
[1767971283866,7.39856811,136.56,136.52,8.09190247]
[1767971284087,7.36915078,136.6,136.53,0.69333436]
[1767971284287,7.39856811,136.59,136.54,8.09190247]
[1767971284583,15.40839725,136.6,136.55,7.39856811]
[1767971284787,7.39856811,136.59,136.54,15.41562303]
[1767971284994,7.3199153,136.62,136.57,0.69333436]
[1767971285201,13.38,136.65,136.6,0.69333436]
[1767971285368,0.2,136.66,136.61,8.09190247]
[1767971285567,0.2,136.66,136.62,7.39856811]
[1767971285772,0.2,136.66,136.61,0.69333436]
[1767971285994,0.2,136.66,136.62,7.39856811]
[1767971286194,7.59856811,136.66,136.62,7.39856811]
[1767971286499,0.2,136.66,136.65,11.94560595]
[1767971286700,0.2,136.66,136.63,0.69333436]
[1767971286914,0.2,136.66,136.62,11.94560595]
[1767971286915,1e-08,136.66,136.65,11.94560595]
[1767971287197,1e-08,136.66,136.62,19.95815163]
[1767971287373,0.26398204,136.65,136.57,0.69333436]
[1767971287577,1e-08,136.66,136.62,11.94560595]
[1767971287788,1e-08,136.66,136.61,0.69333436]
[1767971288096,1e-08,136.66,136.61,12.63894031]
[1767971288302,11.94560596,136.66,136.61,12.63894031]
[1767971288598,11.94560595,136.64,136.59,33.3399247]
[1767971288798,11.94560595,136.64,136.59,19.9599247]
[1767971290102,11.94560595,136.64,136.6,11.94560595]
[1767971290312,11.94560595,136.64,136.6,0.69333436]
[1767971290901,11.94560595,136.63,136.6,0.69333436]
[1767971291121,11.94560595,136.62,136.57,8.01549947]
[1767971291293,11.94560595,136.6,136.56,7.32264714]
[1767971291905,11.94560595,136.6,136.56,19.26825309]
[1767971292084,11.94560595,136.61,136.56,19.96158745]
[1767971292285,0.25548304,136.66,136.6,12.63894031]
[1767971292504,11.94560595,136.65,136.6,12.63894031]
[1767971292717,11.94560595,136.63,136.58,14.05333436]
[1767971292883,11.94560595,136.65,136.61,0.69333436]
[1767971293084,11.94560595,136.65,136.6,11.94560595]
[1767971293085,11.94560596,136.66,136.6,0.69333436]
[1767971293315,11.94560595,136.65,136.61,0.69333436]
[1767971294114,11.94560595,136.63,136.59,7.3208513]
[1767971294289,11.94560595,136.64,136.6,12.63894031]
[1767971294493,11.94560595,136.64,136.61,7.31968917]
[1767971294721,11.94560595,136.65,136.61,7.31968917]
[1767971294898,12.63464604,136.66,136.61,7.31968917]
[1767971295210,1e-08,136.66,136.63,19.2646346]
[1767971295518,1e-08,136.66,136.63,19.95796896]
[1767971296096,1e-08,136.66,136.65,12.63894031]
[1767971296402,0.2,136.68,136.65,11.94560595]
[1767971296403,1e-08,136.68,136.65,11.94560595]
[1767971296600,0.1,136.72,136.67,11.94560595]
[1767971296808,0.1,136.72,136.7,11.94560595]
[1767971296997,0.1,136.72,136.66,13.36]
[1767971296998,0.1,136.72,136.68,0.69333436]
[1767971297403,12.62998177,136.7,136.64,14.05333436]
[1767971297599,0.1,136.72,136.67,19.95575356]
[1767971297800,0.1,136.72,136.68,19.26188112]
[1767971298004,0.1,136.72,136.7,12.63894031]
[1767971298416,0.1,136.72,136.7,0.69333436]
[1767971298797,12.04560595,136.72,136.68,0.69333436]
[1767971299004,12.04560595,136.72,136.65,18.29445058]
[1767971299005,11.94560595,136.71,136.66,12.63894031]
[1767971299214,11.94560595,136.71,136.67,11.94560595]
[1767971299528,0.1,136.72,136.68,11.94560595]
[1767971299700,19.35983627,136.72,136.67,0.69333436]
[1767971299900,11.94560595,136.71,136.66,19.26294269]
[1767971300114,11.94560595,136.7,136.65,8.01108912]
[1767971300307,11.94560595,136.7,136.66,11.94560595]
[1767971300502,0.45581504,136.71,136.65,19.95669507]
[1767971300813,11.94560595,136.68,136.62,0.69333436]
[1767971301049,11.94560595,136.68,136.63,12.63894031]
[1767971301208,11.94560595,136.67,136.63,12.63894031]
[1767971301414,12.62550129,136.66,136.61,12.63894031]
[1767971301728,0.68904008,136.64,136.58,0.69333436]
[1767971301901,11.94560595,136.63,136.58,19.96031644]
[1767971302801,0.68904008,136.64,136.59,19.26678519]
[1767971303028,11.94560595,136.63,136.58,8.01485394]
[1767971303322,0.68904008,136.66,136.59,0.69333436]
[1767971303498,11.94560595,136.64,136.59,12.63894031]
[1767971304027,11.94560595,136.63,136.59,0.69333436]
[1767971304627,11.94560595,136.61,136.57,8.01523848]
[1767971304924,12.62998177,136.62,136.57,19.96084443]
[1767971305431,12.62998177,136.62,136.58,11.94560595]
[1767971306928,19.95329969,136.64,136.59,11.94560595]
[1767971307142,11.94560595,136.63,136.59,11.94560595]
[1767971307306,11.94560595,136.63,136.58,19.96032467]
[1767971307501,19.26472489,136.63,136.58,19.96032467]
[1767971307825,11.94560595,136.61,136.57,7.322093]
[1767971308133,12.40142099,136.61,136.56,19.96163865]
[1767971308308,11.94560595,136.6,136.55,20.68318981]
[1767971308631,11.94560595,136.59,136.55,7.32318981]
[1767971308815,12.4037066,136.59,136.54,19.96256589]
[1767971309130,0.68211306,136.58,136.54,11.94560595]
[1767971309303,12.62771901,136.58,136.53,19.96303353]
[1767971309726,0.68904008,136.53,136.47,0.2]
[1767971309917,20.32443384,136.54,136.47,0.2]
[1767971310117,11.94560595,136.48,136.42,0.69333436]
[1767971310318,0.28432314,136.49,136.43,0.69333436]
[1767971310519,11.94560595,136.47,136.43,0.69333436]
[1767971310724,11.94560595,136.48,136.43,12.63894031]
[1767971311038,13.36,136.5,136.43,0.69333436]
[1767971311039,11.94560595,136.49,136.43,0.69333436]
[1767971311238,11.94560595,136.49,136.44,11.94560595]
[1767971311403,15.0,136.57,136.47,0.69333436]
[1767971311404,13.36,136.53,136.47,0.69333436]
[1767971311604,11.94560595,136.51,136.46,11.94560595]
[1767971311809,11.94560595,136.5,136.46,11.94560595]
[1767971312108,12.63464603,136.51,136.46,11.94560595]
[1767971312333,11.94560595,136.5,136.45,12.63894031]
[1767971312728,0.69594954,136.48,136.43,20.68966036]
[1767971312934,12.64155549,136.5,136.45,11.94560595]
[1767971313447,12.64155549,136.5,136.44,8.0484519]
[1767971313448,11.94560595,136.49,136.44,8.0484519]
[1767971313826,12.64155549,136.5,136.44,8.0484519]
[1767971314021,12.64155549,136.5,136.43,13.36]
[1767971314022,12.64155549,136.48,136.42,8.04952372]
[1767971314338,0.66594952,136.47,136.42,12.66494672]
[1767971314526,12.61155547,136.47,136.42,12.66494672]
[1767971314931,12.61155547,136.47,136.42,19.99488976]
[1767971315246,0.66594952,136.47,136.43,19.27517777]
[1767971315947,19.27221925,136.49,136.44,11.94560595]
[1767971316147,5.9767959,136.57,136.44,11.94560595]
[1767971316148,12.64155549,136.53,136.48,12.66494672]
[1767971316527,12.64155549,136.53,136.48,0.71934077]
[1767971316727,11.94560595,136.52,136.47,11.94560595]
[1767971317025,11.94560595,136.52,136.47,12.66494672]
[1767971317326,11.94560595,136.51,136.47,12.66494672]
[1767971317750,11.94560595,136.51,136.47,0.71934077]
[1767971318127,11.94560595,136.51,136.47,8.04692023]
[1767971318450,11.94560595,136.51,136.46,25.32560595]
[1767971318451,19.27109653,136.51,136.46,32.65369509]
[1767971318626,11.94560595,136.51,136.46,33.37303586]
[1767971318947,11.94560595,136.5,136.46,33.37303586]
[1767971319131,11.94560595,136.51,136.46,33.37303586]
[1767971319651,0.69594954,136.48,136.42,0.71934077]
[1767971319957,12.64155549,136.48,136.43,19.99435779]
[1767971320931,12.61155549,136.48,136.44,13.38]
[1767971321135,12.61155549,136.48,136.44,25.32560595]
[1767971321549,12.61155549,136.48,136.44,13.38]
[1767971321843,11.94560595,136.46,136.44,13.38]
[1767971322045,7.32722053,136.48,136.38,36.66177539]
[1767971322046,11.94560595,136.43,136.38,8.05143385]
[1767971322354,11.94560595,136.44,136.4,0.71934077]
[1767971322657,11.94560595,136.41,136.37,0.71934077]
[1767971323248,11.94560595,136.42,136.37,0.71934077]
[1767971323571,11.94560595,136.41,136.37,0.71934077]
[1767971323847,19.27646692,136.41,136.37,0.71934077]
[1767971324152,11.94560595,136.43,136.39,0.71934077]
[1767971324330,19.27545922,136.43,136.39,0.71934077]
[1767971324648,11.94560595,136.42,136.37,12.66494672]
[1767971324855,11.94560595,136.41,136.37,14.09934077]
[1767971325047,11.94560595,136.42,136.37,21.43226997]
[1767971325452,11.94560595,136.42,136.38,0.71934077]
[1767971325830,7.32985327,136.43,136.37,0.71934077]
[1767971325831,11.94560595,136.41,136.37,0.71934077]
[1767971326026,130.45516744,136.44,136.39,0.71934077]
[1767971326252,130.45516744,136.44,136.39,12.66494672]
[1767971326551,130.45516744,136.44,136.39,0.71934077]
[1767971326851,130.45516744,136.44,136.39,12.66494672]
[1767971327158,130.45516744,136.44,136.38,20.71242529]
[1767971327159,118.50956149,136.44,136.4,12.66494672]
[1767971327355,7.32830945,136.46,136.42,0.71934077]
[1767971327559,7.32830945,136.46,136.42,12.66494672]
[1767971327862,13.38,136.5,136.43,0.71934077]
[1767971327863,18.62571665,136.49,136.43,0.71934077]
[1767971328036,19.27308769,136.48,136.43,0.71934077]
[1767971328236,11.94560595,136.47,136.43,0.71934077]
[1767971328449,19.27308769,136.48,136.43,12.66494672]
[1767971328636,19.27308769,136.48,136.43,26.04494672]
[1767971328968,19.27308769,136.48,136.43,14.09934077]
[1767971329260,19.27221444,136.49,136.44,12.66494672]
[1767971329642,31.6915964,136.53,136.45,12.63645595]
[1767971329838,7.32600732,136.5,136.45,12.63645595]
[1767971330038,19.27161327,136.5,136.45,12.63645595]
[1767971330455,7.32600732,136.5,136.45,12.63645595]
[1767971330645,7.32547928,136.51,136.46,13.38]
[1767971330853,11.94560595,136.52,136.47,12.63645595]
[1767971331350,11.94560595,136.52,136.47,0.69085]
[1767971331549,11.94560595,136.51,136.47,0.69085]
[1767971331853,19.27198513,136.5,136.45,12.63645595]
[1767971332046,19.27198513,136.5,136.46,13.38]
[1767971333167,6.6801107,136.53,136.47,0.69085]
[1767971333361,11.94560595,136.52,136.47,12.63645595]
[1767971333550,11.94560595,136.51,136.47,0.69085]
[1767971333755,11.94560595,136.51,136.47,14.07085]
[1767971334061,19.27161327,136.5,136.47,14.07085]
[1767971334246,19.27161327,136.5,136.46,13.38]
[1767971334966,11.94560595,136.49,136.46,13.38]
[1767971335153,104.64216157,136.52,136.47,12.63645595]
[1767971335154,104.5,136.52,136.47,12.63645595]
[1767971335359,116.44560595,136.52,136.48,0.69085]
[1767971335561,116.44560595,136.52,136.49,0.69085]
[1767971335562,104.5,136.52,136.49,0.69085]
[1767971335763,111.82502789,136.52,136.49,0.69085]
[1767971335970,7.32446305,136.53,136.49,12.63645595]
[1767971336176,7.32446305,136.53,136.5,11.94560595]
[1767971336341,18.30575857,136.57,136.5,11.94560595]
[1767971336670,11.94560595,136.54,136.49,21.39732047]
[1767971336964,6.6801107,136.56,136.5,11.94560595]
[1767971337177,11.94560595,136.55,136.5,11.94560595]
[1767971337548,37.57361684,136.57,136.53,0.69085]
[1767971338171,7.32225232,136.57,136.53,12.63645595]
[1767971338469,7.32130123,136.59,136.55,11.94560595]
[1767971338640,7.32087242,136.6,136.56,11.94560595]
[1767971338842,7.32023828,136.61,136.57,11.94560595]
[1767971339040,7.32023828,136.61,136.53,7.32437415]
[1767971339041,7.31975505,136.62,136.58,26.01645595]
[1767971339271,7.31975505,136.62,136.58,12.63645595]
[1767971339574,5.9767959,136.67,136.58,12.63645595]
[1767971339575,7.31850117,136.64,136.58,12.63645595]
[1767971339746,19.26410712,136.64,136.59,26.01645595]
[1767971339950,19.26410712,136.64,136.59,12.63645595]
[1767971340144,7.31850117,136.64,136.59,12.63645595]
[1767971340350,19.26410712,136.64,136.59,26.01645595]
[1767971340562,11.94560595,136.63,136.59,0.69085]
[1767971340874,11.94560595,136.62,136.59,13.38]
[1767971341084,25.61475409,136.64,136.59,13.38]
[1767971341286,25.61475409,136.64,136.53,0.28432314]
[1767971341287,11.94560595,136.61,136.55,0.69085]
[1767971341574,0.28432314,136.63,136.56,26.01645595]
[1767971341751,4.76936014,136.63,136.58,0.69085]
[1767971341951,44.24047074,136.64,136.58,12.63645595]
[1767971342282,11.94560595,136.63,136.58,12.63645595]
[1767971343403,37.56036004,136.64,136.58,14.07085]
[1767971343613,276.5767959,136.7,136.63,12.657185]
[1767971343774,24.04045162,136.69,136.64,11.94560595]
[1767971343974,111.81535227,136.7,136.66,11.94560595]
[1767971344219,19.26095822,136.7,136.6,11.94560595]